[Event "Early-Titled-Tuesday-Blitz-May-07-2024"]
[Site "Chess.com"]
[Date "2024.05.07"]
[Round "5"]
[White "GM_dmitrij"]
[Black "AlexeiShirov"]
[Result "1/2-1/2"]
[WhiteElo "3047"]
[BlackElo "2853"]
[TimeControl "180+1"]
[EndTime "8:57:06 PDT"]
[Termination "Game drawn by repetition"]

1. e4 {[%clk 0:03:00.9]} 1... e5 {[%clk 0:02:59]} 2. Nf3 {[%clk 0:03:00.4]} 2...
Nc6 {[%clk 0:02:58.9]} 3. Bb5 {[%clk 0:03:01]} 3... f5 {[%clk 0:02:59]} 4. d3
{[%clk 0:02:58.9]} 4... fxe4 {[%clk 0:02:59]} 5. dxe4 {[%clk 0:02:59.8]} 5...
Nf6 {[%clk 0:02:58.7]} 6. O-O {[%clk 0:02:58.9]} 6... Bc5 {[%clk 0:02:57.5]} 7.
Bxc6 {[%clk 0:02:55.5]} 7... bxc6 {[%clk 0:02:55.6]} 8. Nxe5 {[%clk 0:02:55.7]}
8... O-O {[%clk 0:02:51.9]} 9. Nc3 {[%clk 0:02:54.4]} 9... Qe8 {[%clk
0:02:47.7]} 10. Nd3 {[%clk 0:02:52.8]} 10... Bd4 {[%clk 0:02:43.3]} 11. Ne2
{[%clk 0:02:45.4]} 11... Bb6 {[%clk 0:02:40.1]} 12. e5 {[%clk 0:02:18.2]} 12...
Ng4 {[%clk 0:02:39.6]} 13. Bf4 {[%clk 0:02:13.3]} 13... Ba6 {[%clk 0:02:38.3]}
14. Bg3 {[%clk 0:01:54.5]} 14... Bxd3 {[%clk 0:02:27.6]} 15. cxd3 {[%clk
0:01:26.2]} 15... Nxe5 {[%clk 0:02:20.7]} 16. d4 {[%clk 0:01:26.8]} 16... Ng6
{[%clk 0:02:15.8]} 17. Qd3 {[%clk 0:01:21.1]} 17... Qf7 {[%clk 0:02:12.5]} 18.
b3 {[%clk 0:01:15.1]} 18... Ne7 {[%clk 0:02:05]} 19. Rad1 {[%clk 0:01:12.6]}
19... Nd5 {[%clk 0:02:03.2]} 20. Nc3 {[%clk 0:01:13.1]} 20... Nf4 {[%clk
0:01:54.8]} 21. Qc4 {[%clk 0:01:04]} 21... Qxc4 {[%clk 0:01:29.8]} 22. bxc4
{[%clk 0:01:04.9]} 22... Ba5 {[%clk 0:01:29.2]} 23. Bxf4 {[%clk 0:00:32.5]}
23... Rxf4 {[%clk 0:01:27.5]} 24. Ne2 {[%clk 0:00:33.4]} 24... Re4 {[%clk
0:01:22.6]} 25. Ng3 {[%clk 0:00:33.8]} 25... Rf4 {[%clk 0:01:22.7]} 26. Ne2
{[%clk 0:00:34]} 26... Re4 {[%clk 0:01:22.6]} 27. Ng3 {[%clk 0:00:34.5]} 27...
Rf4 {[%clk 0:01:22.8]} 28. Ne2 {[%clk 0:00:33.7]} 1/2-1/2

[Event "Early-Titled-Tuesday-Blitz-May-07-2024"]
[Site "Chess.com"]
[Date "2024.05.07"]
[Round "5"]
[White "Aminazinas"]
[Black "Chessbard1972"]
[Result "1-0"]
[WhiteElo "2642"]
[BlackElo "2342"]
[TimeControl "180+1"]
[EndTime "8:57:07 PDT"]
[Termination "Aminazinas won by resignation"]

1. e4 {[%clk 0:03:00.9]} 1... e5 {[%clk 0:02:58.8]} 2. Nf3 {[%clk 0:03:00.6]}
2... Nc6 {[%clk 0:02:58.4]} 3. d4 {[%clk 0:03:00.5]} 3... exd4 {[%clk
0:02:57.3]} 4. Nxd4 {[%clk 0:03:01.4]} 4... Bc5 {[%clk 0:02:57.4]} 5. Be3 {[%clk
0:03:01.2]} 5... Qf6 {[%clk 0:02:56.6]} 6. c3 {[%clk 0:03:01.6]} 6... Nge7
{[%clk 0:02:55.3]} 7. g3 {[%clk 0:03:01.6]} 7... d5 {[%clk 0:02:50]} 8. Bg2
{[%clk 0:03:01.6]} 8... dxe4 {[%clk 0:02:47]} 9. Nb5 {[%clk 0:03:01.7]} 9... O-O
{[%clk 0:02:33.9]} 10. Bxc5 {[%clk 0:02:57.8]} 10... Rd8 {[%clk 0:02:28.6]} 11.
Qe2 {[%clk 0:02:54.3]} 11... Qe5 {[%clk 0:02:24]} 12. Be3 {[%clk 0:02:50.9]}
12... Bg4 {[%clk 0:02:15.3]} 13. Qxg4 {[%clk 0:02:41.8]} 13... Qxb5 {[%clk
0:02:15.2]} 14. Qe2 {[%clk 0:02:37.9]} 14... Qd5 {[%clk 0:02:05.2]} 15. Nd2
{[%clk 0:02:37.9]} 15... f5 {[%clk 0:02:04.1]} 16. Qc4 {[%clk 0:02:37.7]} 16...
Ne5 {[%clk 0:02:02.5]} 17. Qxd5+ {[%clk 0:02:36]} 17... Rxd5 {[%clk 0:02:02.5]}
18. O-O-O {[%clk 0:02:33.9]} 18... Nd3+ {[%clk 0:02:01.6]} 19. Kc2 {[%clk
0:02:32.4]} 19... Rad8 {[%clk 0:02:01.4]} 20. Nxe4 {[%clk 0:02:18.8]} 20... fxe4
{[%clk 0:01:57.5]} 21. Bxe4 {[%clk 0:02:19.7]} 21... Ne5 {[%clk 0:01:23.9]} 22.
Bxd5+ {[%clk 0:02:16.8]} 22... Nxd5 {[%clk 0:01:24.2]} 23. Bf4 {[%clk
0:01:59.6]} 23... Ng6 {[%clk 0:01:11.3]} 24. c4 {[%clk 0:01:54]} 24... Ngxf4
{[%clk 0:01:03.4]} 25. gxf4 {[%clk 0:01:51.1]} 25... Nb4+ {[%clk 0:00:59]} 26.
Kc3 {[%clk 0:01:49.8]} 26... Nc6 {[%clk 0:00:55.1]} 27. Rxd8+ {[%clk 0:01:48.9]}
27... Nxd8 {[%clk 0:00:55.5]} 28. Rd1 {[%clk 0:01:48.9]} 28... Ne6 {[%clk
0:00:55.2]} 29. Rd7 {[%clk 0:01:47.8]} 29... g6 {[%clk 0:00:52]} 30. Re7 {[%clk
0:01:46.7]} 30... Nxf4 {[%clk 0:00:51]} 31. Rxc7 {[%clk 0:01:46.8]} 31... Nh3
{[%clk 0:00:47.8]} 32. Rxb7 {[%clk 0:01:43.7]} 32... Nxf2 {[%clk 0:00:47.9]} 33.
c5 {[%clk 0:01:42.9]} 33... Ne4+ {[%clk 0:00:42.8]} 34. Kd4 {[%clk 0:01:42.7]}
34... Nf6 {[%clk 0:00:42.1]} 35. Ke5 {[%clk 0:01:42.6]} 35... Ne8 {[%clk
0:00:41.6]} 36. c6 {[%clk 0:01:37.7]} 1-0

[Event "Early-Titled-Tuesday-Blitz-May-07-2024"]
[Site "Chess.com"]
[Date "2024.05.07"]
[Round "5"]
[White "OppieZippy"]
[Black "cycygogne"]
[Result "0-1"]
[WhiteElo "2357"]
[BlackElo "2173"]
[TimeControl "180+1"]
[EndTime "8:57:10 PDT"]
[Termination "cycygogne won by resignation"]

1. Nf3 {[%clk 0:02:58.7]} 1... c5 {[%clk 0:02:59.1]} 2. g3 {[%clk 0:02:58.7]}
2... g6 {[%clk 0:02:57.7]} 3. Bg2 {[%clk 0:02:59.1]} 3... Bg7 {[%clk 0:02:58]}
4. O-O {[%clk 0:02:59.8]} 4... Nc6 {[%clk 0:02:57]} 5. c4 {[%clk 0:03:00.3]}
5... e5 {[%clk 0:02:56.5]} 6. d3 {[%clk 0:02:59.9]} 6... Nge7 {[%clk 0:02:56.3]}
7. Nc3 {[%clk 0:03:00.6]} 7... O-O {[%clk 0:02:56.4]} 8. a3 {[%clk 0:03:01.1]}
8... d5 {[%clk 0:02:53.3]} 9. cxd5 {[%clk 0:03:01.5]} 9... Nxd5 {[%clk
0:02:54.2]} 10. Nxd5 {[%clk 0:03:02.4]} 10... Qxd5 {[%clk 0:02:53.9]} 11. Be3
{[%clk 0:03:03.3]} 11... Qd6 {[%clk 0:02:29.7]} 12. Rc1 {[%clk 0:03:02.9]} 12...
b6 {[%clk 0:02:29.5]} 13. b4 {[%clk 0:03:00]} 13... cxb4 {[%clk 0:02:23.3]} 14.
Nd2 {[%clk 0:03:00.3]} 14... Bb7 {[%clk 0:02:19.9]} 15. axb4 {[%clk 0:03:00.9]}
15... Rac8 {[%clk 0:02:17]} 16. Qa4 {[%clk 0:03:00.2]} 16... Ba8 {[%clk
0:01:56.7]} 17. Nc4 {[%clk 0:02:58.8]} 17... Qe6 {[%clk 0:01:49.5]} 18. b5
{[%clk 0:02:57.9]} 18... Nd4 {[%clk 0:01:46.9]} 19. Bxa8 {[%clk 0:02:51.3]}
19... Nxe2+ {[%clk 0:01:46.5]} 20. Kg2 {[%clk 0:02:50.3]} 20... Rxa8 {[%clk
0:01:45.4]} 21. Rce1 {[%clk 0:02:48.4]} 21... Qd5+ {[%clk 0:01:41.5]} 22. f3
{[%clk 0:02:47.5]} 22... Nc3 {[%clk 0:01:35.7]} 23. Qc2 {[%clk 0:02:46.4]} 23...
Nxb5 {[%clk 0:01:34.7]} 24. Kg1 {[%clk 0:02:42.8]} 24... Nd4 {[%clk 0:01:34.4]}
25. Qf2 {[%clk 0:02:41.7]} 25... b5 {[%clk 0:01:31.3]} 26. Bxd4 {[%clk
0:02:42.2]} 26... exd4 {[%clk 0:01:28.9]} 27. Nd2 {[%clk 0:02:41.2]} 27... a5
{[%clk 0:01:27.3]} 28. Rb1 {[%clk 0:02:38.6]} 28... a4 {[%clk 0:01:25]} 29. Ne4
{[%clk 0:02:37.7]} 29... a3 {[%clk 0:01:22.1]} 30. Rb4 {[%clk 0:02:36.1]} 30...
Rfc8 {[%clk 0:01:15]} 31. Ra1 {[%clk 0:02:29.9]} 31... f5 {[%clk 0:01:10.6]} 32.
Ng5 {[%clk 0:02:29.6]} 32... h6 {[%clk 0:01:07.5]} 33. Nh3 {[%clk 0:02:29.6]}
33... Rc3 {[%clk 0:01:03.1]} 34. Nf4 {[%clk 0:02:29.2]} 34... Qc6 {[%clk
0:00:59.9]} 35. Rbb1 {[%clk 0:02:25.5]} 35... Kh7 {[%clk 0:00:58.4]} 36. h4
{[%clk 0:02:24.5]} 36... a2 {[%clk 0:00:55.8]} 37. Rd1 {[%clk 0:02:23.2]} 37...
Rc2 {[%clk 0:00:54.4]} 38. Qe1 {[%clk 0:02:21.8]} 38... Qxf3 {[%clk 0:00:48.7]}
39. Rd2 {[%clk 0:02:22.4]} 39... Rxd2 {[%clk 0:00:46.8]} 40. Qxd2 {[%clk
0:02:23.3]} 40... Qxg3+ {[%clk 0:00:47.3]} 41. Kf1 {[%clk 0:02:23.9]} 41... Qf3+
{[%clk 0:00:46.3]} 42. Kg1 {[%clk 0:02:24]} 42... Be5 {[%clk 0:00:46.6]} 43.
Rxa2 {[%clk 0:02:21.5]} 43... Bxf4 {[%clk 0:00:44.7]} 44. Qb2 {[%clk 0:02:14.1]}
44... Be3+ {[%clk 0:00:44.5]} 45. Kh2 {[%clk 0:02:13.5]} 45... Qf4+ {[%clk
0:00:43]} 46. Kh1 {[%clk 0:02:09.9]} 46... Qxh4+ {[%clk 0:00:42.9]} 47. Kg2
{[%clk 0:02:10.6]} 47... Qg4+ {[%clk 0:00:42.3]} 48. Kh2 {[%clk 0:02:11.3]}
48... Bf4+ {[%clk 0:00:42.1]} 49. Kh1 {[%clk 0:02:12]} 49... Qh3+ {[%clk
0:00:41.8]} 50. Kg1 {[%clk 0:02:12.8]} 50... Be3+ {[%clk 0:00:41.8]} 0-1

[Event "Early-Titled-Tuesday-Blitz-May-07-2024"]
[Site "Chess.com"]
[Date "2024.05.07"]
[Round "5"]
[White "howitzer14"]
[Black "Blackwhite017"]
[Result "1-0"]
[WhiteElo "3014"]
[BlackElo "2109"]
[TimeControl "180+1"]
[EndTime "8:57:11 PDT"]
[Termination "howitzer14 won by checkmate"]

1. d4 {[%clk 0:02:56.4]} 1... f5 {[%clk 0:02:58.7]} 2. Nc3 {[%clk 0:02:54.4]}
2... e6 {[%clk 0:02:58.1]} 3. e4 {[%clk 0:02:54.1]} 3... fxe4 {[%clk 0:02:57.9]}
4. Nxe4 {[%clk 0:02:55]} 4... Nf6 {[%clk 0:02:57.4]} 5. Bd3 {[%clk 0:02:54.6]}
5... Be7 {[%clk 0:02:56.5]} 6. Nf3 {[%clk 0:02:51.9]} 6... O-O {[%clk
0:02:41.1]} 7. O-O {[%clk 0:02:51.6]} 7... b6 {[%clk 0:02:30.1]} 8. Nxf6+ {[%clk
0:02:48.5]} 8... Bxf6 {[%clk 0:02:29]} 9. Be4 {[%clk 0:02:49.4]} 9... d5 {[%clk
0:02:17.6]} 10. Bd3 {[%clk 0:02:49]} 10... c5 {[%clk 0:02:07.8]} 11. c3 {[%clk
0:02:48.7]} 11... cxd4 {[%clk 0:01:45.5]} 12. cxd4 {[%clk 0:02:49.6]} 12... Nc6
{[%clk 0:01:46.1]} 13. Bxh7+ {[%clk 0:02:44.9]} 13... Kxh7 {[%clk 0:01:43.1]}
14. Qc2+ {[%clk 0:02:44.8]} 14... Kg8 {[%clk 0:01:39.7]} 15. Qxc6 {[%clk
0:02:45.7]} 15... Bd7 {[%clk 0:01:36.4]} 16. Qd6 {[%clk 0:02:36.5]} 16... Be7
{[%clk 0:01:22.2]} 17. Qg3 {[%clk 0:02:35]} 17... Rc8 {[%clk 0:01:07]} 18. Bh6
{[%clk 0:02:24.6]} 18... Bf6 {[%clk 0:01:02.2]} 19. Rac1 {[%clk 0:02:22.5]}
19... Qe7 {[%clk 0:00:54.8]} 20. a3 {[%clk 0:02:17.2]} 20... Rxc1 {[%clk
0:00:40.4]} 21. Rxc1 {[%clk 0:02:18.1]} 21... Rc8 {[%clk 0:00:40.7]} 22. h4
{[%clk 0:02:06.9]} 22... Rxc1+ {[%clk 0:00:32.9]} 23. Bxc1 {[%clk 0:02:07.8]}
23... Be8 {[%clk 0:00:20.6]} 24. Bg5 {[%clk 0:02:02]} 24... Bh5 {[%clk
0:00:12.8]} 25. Bxf6 {[%clk 0:01:56.8]} 25... Qxf6 {[%clk 0:00:13.7]} 26. Qb8+
{[%clk 0:01:57.2]} 26... Kh7 {[%clk 0:00:13]} 27. Ng5+ {[%clk 0:01:55.6]} 27...
Kg6 {[%clk 0:00:07.9]} 28. Qe8+ {[%clk 0:01:54.2]} 28... Kh6 {[%clk 0:00:07.3]}
29. Qh8+ {[%clk 0:01:54.1]} 29... Kg6 {[%clk 0:00:07]} 30. Qh7# {[%clk 0:01:55]}
1-0

[Event "Early-Titled-Tuesday-Blitz-May-07-2024"]
[Site "Chess.com"]
[Date "2024.05.07"]
[Round "5"]
[White "kyawmyataung2005"]
[Black "mortngabriel"]
[Result "0-1"]
[WhiteElo "2296"]
[BlackElo "2501"]
[TimeControl "180+1"]
[EndTime "8:57:13 PDT"]
[Termination "mortngabriel won by checkmate"]

1. e4 {[%clk 0:02:55.1]} 1... c5 {[%clk 0:02:57.6]} 2. Nf3 {[%clk 0:02:54.1]}
2... Nc6 {[%clk 0:02:57.8]} 3. d4 {[%clk 0:02:53.4]} 3... cxd4 {[%clk
0:02:58.7]} 4. Nxd4 {[%clk 0:02:53.6]} 4... Nf6 {[%clk 0:02:59.1]} 5. Nc3 {[%clk
0:02:51.8]} 5... e5 {[%clk 0:02:58.6]} 6. Ndb5 {[%clk 0:02:51.7]} 6... d6 {[%clk
0:02:50.6]} 7. Bg5 {[%clk 0:02:50.8]} 7... a6 {[%clk 0:02:47]} 8. Na3 {[%clk
0:02:49.5]} 8... b5 {[%clk 0:02:47.5]} 9. Bxf6 {[%clk 0:02:49]} 9... gxf6 {[%clk
0:02:48.4]} 10. Nd5 {[%clk 0:02:49.1]} 10... Bg7 {[%clk 0:02:48.2]} 11. c3
{[%clk 0:02:48]} 11... f5 {[%clk 0:02:42.1]} 12. Bd3 {[%clk 0:02:47.5]} 12...
Ne7 {[%clk 0:02:34.4]} 13. Nxe7 {[%clk 0:02:42.9]} 13... Qxe7 {[%clk 0:02:35.3]}
14. exf5 {[%clk 0:02:24.5]} 14... e4 {[%clk 0:02:31.5]} 15. Bc2 {[%clk
0:02:22.3]} 15... O-O {[%clk 0:02:21.6]} 16. O-O {[%clk 0:02:20.3]} 16... Bxf5
{[%clk 0:02:17.5]} 17. Re1 {[%clk 0:02:20.2]} 17... Rfe8 {[%clk 0:02:11.4]} 18.
Qd5 {[%clk 0:02:05.9]} 18... Bg6 {[%clk 0:01:56.5]} 19. Nb1 {[%clk 0:01:59.9]}
19... b4 {[%clk 0:01:48]} 20. Re3 {[%clk 0:01:46.3]} 20... Bh6 {[%clk
0:01:21.6]} 21. Re2 {[%clk 0:01:29.6]} 21... e3 {[%clk 0:01:17.5]} 22. Bxg6
{[%clk 0:00:55]} 22... exf2+ {[%clk 0:01:08.5]} 23. Rxf2 {[%clk 0:00:44]} 23...
Qe1+ {[%clk 0:01:08.6]} 24. Rf1 {[%clk 0:00:44.1]} 24... Be3+ {[%clk 0:01:08.7]}
25. Kh1 {[%clk 0:00:44]} 25... Qxf1# {[%clk 0:01:08.9]} 0-1

[Event "Early-Titled-Tuesday-Blitz-May-07-2024"]
[Site "Chess.com"]
[Date "2024.05.07"]
[Round "5"]
[White "biveklama"]
[Black "ChristopherYoo"]
[Result "0-1"]
[WhiteElo "2539"]
[BlackElo "3007"]
[TimeControl "180+1"]
[EndTime "8:57:15 PDT"]
[Termination "ChristopherYoo won by resignation"]

1. e4 {[%clk 0:03:00.9]} 1... e5 {[%clk 0:02:59.7]} 2. Nf3 {[%clk 0:03:00.4]}
2... Nc6 {[%clk 0:03:00.3]} 3. Bc4 {[%clk 0:03:00.6]} 3... Nf6 {[%clk
0:03:00.3]} 4. d3 {[%clk 0:03:01]} 4... a6 {[%clk 0:03:00.8]} 5. O-O {[%clk
0:02:59]} 5... h6 {[%clk 0:03:00.6]} 6. c3 {[%clk 0:02:58.5]} 6... d6 {[%clk
0:02:58.6]} 7. Bb3 {[%clk 0:02:53.7]} 7... g6 {[%clk 0:02:58.7]} 8. Re1 {[%clk
0:02:51.7]} 8... Bg7 {[%clk 0:02:58.7]} 9. h3 {[%clk 0:02:51.2]} 9... O-O {[%clk
0:02:58.7]} 10. Nbd2 {[%clk 0:02:49.1]} 10... Re8 {[%clk 0:02:58.6]} 11. Nf1
{[%clk 0:02:48.6]} 11... d5 {[%clk 0:02:58.2]} 12. Bd2 {[%clk 0:02:26.6]} 12...
Be6 {[%clk 0:02:55.2]} 13. Qc1 {[%clk 0:02:23.4]} 13... Kh7 {[%clk 0:02:54.6]}
14. Ng3 {[%clk 0:02:18.4]} 14... Qd7 {[%clk 0:02:47.7]} 15. exd5 {[%clk
0:02:06.1]} 15... Bxd5 {[%clk 0:02:46.1]} 16. Ne4 {[%clk 0:02:03.4]} 16... Bxb3
{[%clk 0:02:44.1]} 17. axb3 {[%clk 0:02:00.8]} 17... Qxd3 {[%clk 0:02:43.7]} 18.
Nxf6+ {[%clk 0:01:58.3]} 18... Bxf6 {[%clk 0:02:44.6]} 19. Bxh6 {[%clk
0:01:57.7]} 19... e4 {[%clk 0:02:44.5]} 20. Bg5 {[%clk 0:00:25.6]} 20... Bg7
{[%clk 0:02:40.8]} 21. Nh2 {[%clk 0:00:13.4]} 21... Ne5 {[%clk 0:02:40.8]} 22.
Qe3 {[%clk 0:00:10.6]} 22... f5 {[%clk 0:02:35.2]} 23. Bf4 {[%clk 0:00:09.6]}
23... Qxe3 {[%clk 0:02:35.1]} 24. Rxe3 {[%clk 0:00:09.1]} 24... Nd3 {[%clk
0:02:35.4]} 25. Bxc7 {[%clk 0:00:08.2]} 25... Nxb2 {[%clk 0:02:35.9]} 26. Rb1
{[%clk 0:00:07.1]} 26... Nd3 {[%clk 0:02:35.3]} 27. c4 {[%clk 0:00:07.5]} 27...
Bd4 {[%clk 0:02:31.1]} 28. Re2 {[%clk 0:00:07.5]} 28... a5 {[%clk 0:02:29.7]}
29. Nf1 {[%clk 0:00:07.3]} 29... f4 {[%clk 0:02:22]} 30. Nd2 {[%clk 0:00:03]}
30... Nxf2 {[%clk 0:02:21.7]} 31. Rxf2 {[%clk 0:00:03.4]} 31... Bxf2+ {[%clk
0:02:21.6]} 32. Kxf2 {[%clk 0:00:03.5]} 32... e3+ {[%clk 0:02:22.3]} 33. Kf3
{[%clk 0:00:03.1]} 33... exd2 {[%clk 0:02:22.2]} 34. Rd1 {[%clk 0:00:02.7]}
34... Re3+ {[%clk 0:02:22]} 35. Kxf4 {[%clk 0:00:02.4]} 35... Rxb3 {[%clk
0:02:21.9]} 36. Rxd2 {[%clk 0:00:03.1]} 36... Rf8+ {[%clk 0:02:22.5]} 37. Kg5
{[%clk 0:00:02.4]} 37... Rf7 {[%clk 0:02:21.5]} 38. Be5 {[%clk 0:00:02.9]} 38...
Rf5+ {[%clk 0:02:21.3]} 39. Kg4 {[%clk 0:00:03.5]} 39... Rxe5 {[%clk 0:02:21.6]}
40. Rd7+ {[%clk 0:00:03.4]} 40... Kh6 {[%clk 0:02:21.6]} 0-1

[Event "Early-Titled-Tuesday-Blitz-May-07-2024"]
[Site "Chess.com"]
[Date "2024.05.07"]
[Round "5"]
[White "RebecaJimnz"]
[Black "GMT4114"]
[Result "1-0"]
[WhiteElo "2296"]
[BlackElo "1970"]
[TimeControl "180+1"]
[EndTime "8:57:15 PDT"]
[Termination "RebecaJimnz won by resignation"]

1. e4 {[%clk 0:03:00.9]} 1... e6 {[%clk 0:02:59.4]} 2. d3 {[%clk 0:03:00.7]}
2... c5 {[%clk 0:02:58.8]} 3. g3 {[%clk 0:02:59.4]} 3... Nc6 {[%clk 0:02:58.8]}
4. Bg2 {[%clk 0:02:59.2]} 4... g6 {[%clk 0:02:59.3]} 5. Nc3 {[%clk 0:02:59]}
5... Bg7 {[%clk 0:02:58.6]} 6. Be3 {[%clk 0:02:59.5]} 6... d6 {[%clk 0:02:58.5]}
7. Qd2 {[%clk 0:02:59.1]} 7... Nge7 {[%clk 0:02:54.1]} 8. Bh6 {[%clk 0:02:58.5]}
8... O-O {[%clk 0:02:10.1]} 9. h4 {[%clk 0:02:58.2]} 9... b5 {[%clk 0:02:08.7]}
10. h5 {[%clk 0:02:57.2]} 10... b4 {[%clk 0:02:00.1]} 11. Nd1 {[%clk 0:02:57]}
11... Nd4 {[%clk 0:01:36.4]} 12. hxg6 {[%clk 0:02:50.5]} 12... fxg6 {[%clk
0:01:08.1]} 13. Bxg7 {[%clk 0:02:50]} 13... Kxg7 {[%clk 0:01:09]} 14. Qh6+
{[%clk 0:02:46.5]} 14... Kf7 {[%clk 0:01:09.1]} 15. Qxh7+ {[%clk 0:02:46.1]}
15... Ke8 {[%clk 0:01:09.4]} 16. Ne3 {[%clk 0:02:45.1]} 16... Kd7 {[%clk
0:01:00.4]} 17. f4 {[%clk 0:02:02.9]} 17... Bb7 {[%clk 0:00:58.2]} 18. Ne2
{[%clk 0:01:47.5]} 18... Nxe2 {[%clk 0:00:45.8]} 19. Kxe2 {[%clk 0:01:48.4]}
19... Kc8 {[%clk 0:00:42.1]} 20. Nc4 {[%clk 0:01:39.5]} 20... Nc6 {[%clk
0:00:36.1]} 21. Qxg6 {[%clk 0:01:31.1]} 21... Qe7 {[%clk 0:00:20.5]} 22. Rh7
{[%clk 0:01:27.1]} 22... Qe8 {[%clk 0:00:16.7]} 23. Nxd6+ {[%clk 0:01:26]} 1-0

[Event "Early-Titled-Tuesday-Blitz-May-07-2024"]
[Site "Chess.com"]
[Date "2024.05.07"]
[Round "5"]
[White "Chess23Wizzard"]
[Black "Cheer_Down"]
[Result "1-0"]
[WhiteElo "2684"]
[BlackElo "2477"]
[TimeControl "180+1"]
[EndTime "8:57:16 PDT"]
[Termination "Chess23Wizzard won by resignation"]

1. Nf3 {[%clk 0:03:00.9]} 1... d5 {[%clk 0:02:59.5]} 2. e4 {[%clk 0:03:00.7]}
2... e6 {[%clk 0:02:57.9]} 3. exd5 {[%clk 0:02:59.1]} 3... exd5 {[%clk 0:02:58]}
4. d4 {[%clk 0:02:59.2]} 4... Nf6 {[%clk 0:02:58.3]} 5. Bd3 {[%clk 0:02:58.8]}
5... c5 {[%clk 0:02:58.3]} 6. c3 {[%clk 0:02:58.6]} 6... Nc6 {[%clk 0:02:56]} 7.
dxc5 {[%clk 0:02:57.2]} 7... Bxc5 {[%clk 0:02:55.6]} 8. O-O {[%clk 0:02:57.3]}
8... O-O {[%clk 0:02:54.9]} 9. Bg5 {[%clk 0:02:57.4]} 9... h6 {[%clk 0:02:52.7]}
10. Bh4 {[%clk 0:02:56.6]} 10... g5 {[%clk 0:02:51.4]} 11. Bg3 {[%clk
0:02:52.7]} 11... Ne4 {[%clk 0:02:51.7]} 12. Nbd2 {[%clk 0:02:48.8]} 12... f5
{[%clk 0:02:51.6]} 13. b4 {[%clk 0:01:44.1]} 13... Nxc3 {[%clk 0:02:25.2]} 14.
Qb3 {[%clk 0:01:39.5]} 14... Bxb4 {[%clk 0:02:24.3]} 15. Ne5 {[%clk 0:01:34.1]}
15... a5 {[%clk 0:01:46]} 16. Nxc6 {[%clk 0:01:32.7]} 16... bxc6 {[%clk
0:01:46]} 17. a3 {[%clk 0:01:33.3]} 17... Ne4 {[%clk 0:01:19.2]} 18. Nxe4 {[%clk
0:01:26.1]} 18... fxe4 {[%clk 0:01:13.8]} 19. Bxe4 {[%clk 0:01:27]} 19... Be7
{[%clk 0:01:01.1]} 20. Rad1 {[%clk 0:01:22.3]} 20... Be6 {[%clk 0:00:56.5]} 21.
Rfe1 {[%clk 0:01:21.4]} 21... Qd7 {[%clk 0:00:53.6]} 22. Qc2 {[%clk 0:01:10.6]}
22... Bxa3 {[%clk 0:00:45.6]} 23. Bh7+ {[%clk 0:01:08.8]} 23... Kh8 {[%clk
0:00:45.2]} 24. Be5+ {[%clk 0:01:08.5]} 1-0

[Event "Early-Titled-Tuesday-Blitz-May-07-2024"]
[Site "Chess.com"]
[Date "2024.05.07"]
[Round "5"]
[White "alexrustemov"]
[Black "FREDERICKtheMATE"]
[Result "1/2-1/2"]
[WhiteElo "2944"]
[BlackElo "2706"]
[TimeControl "180+1"]
[EndTime "8:57:24 PDT"]
[Termination "Game drawn by repetition"]

1. d4 {[%clk 0:03:00]} 1... Nf6 {[%clk 0:02:58.6]} 2. c4 {[%clk 0:02:59.7]} 2...
e6 {[%clk 0:02:58.4]} 3. Nf3 {[%clk 0:03:00.1]} 3... d5 {[%clk 0:02:58.1]} 4.
cxd5 {[%clk 0:03:00.4]} 4... exd5 {[%clk 0:02:58.1]} 5. Nc3 {[%clk 0:03:01]}
5... c6 {[%clk 0:02:58.2]} 6. Bf4 {[%clk 0:03:01.5]} 6... Bf5 {[%clk 0:02:57.8]}
7. e3 {[%clk 0:03:01.5]} 7... Nbd7 {[%clk 0:02:58.1]} 8. h3 {[%clk 0:02:59.5]}
8... h6 {[%clk 0:02:57.9]} 9. Bd3 {[%clk 0:02:54.7]} 9... Bxd3 {[%clk
0:02:57.7]} 10. Qxd3 {[%clk 0:02:55.2]} 10... Be7 {[%clk 0:02:57.9]} 11. O-O
{[%clk 0:02:54.8]} 11... O-O {[%clk 0:02:58.1]} 12. Rab1 {[%clk 0:02:52.3]}
12... a5 {[%clk 0:02:56.3]} 13. Qc2 {[%clk 0:02:50.8]} 13... Re8 {[%clk
0:02:55.4]} 14. Rfc1 {[%clk 0:02:49.3]} 14... Bf8 {[%clk 0:02:49.4]} 15. a3
{[%clk 0:02:49]} 15... Re6 {[%clk 0:02:43]} 16. Ne5 {[%clk 0:02:39.5]} 16...
Nxe5 {[%clk 0:02:42.8]} 17. Bxe5 {[%clk 0:02:39.4]} 17... Nd7 {[%clk 0:02:42.8]}
18. Bf4 {[%clk 0:02:38.6]} 18... Bd6 {[%clk 0:02:41.7]} 19. Bxd6 {[%clk
0:02:32.4]} 19... Rxd6 {[%clk 0:02:42.6]} 20. Na4 {[%clk 0:02:28.3]} 20... Rg6
{[%clk 0:02:41]} 21. Qf5 {[%clk 0:02:13.7]} 21... Rf6 {[%clk 0:02:38.7]} 22. Qg4
{[%clk 0:02:09.8]} 22... Rg6 {[%clk 0:02:38.3]} 23. Qf3 {[%clk 0:02:08.7]} 23...
Rf6 {[%clk 0:02:37.3]} 24. Qg3 {[%clk 0:02:07.2]} 24... Rg6 {[%clk 0:02:36.9]}
25. Qf4 {[%clk 0:02:05.7]} 25... Rf6 {[%clk 0:02:35.1]} 26. Qh2 {[%clk
0:02:05.4]} 26... Rg6 {[%clk 0:02:35.2]} 27. Nc5 {[%clk 0:02:02.5]} 27... Nxc5
{[%clk 0:02:34.8]} 28. Rxc5 {[%clk 0:02:02.2]} 28... a4 {[%clk 0:02:34.3]} 29.
b4 {[%clk 0:01:38.9]} 29... axb3 {[%clk 0:02:33.6]} 30. Rxb3 {[%clk 0:01:38.7]}
30... b5 {[%clk 0:02:32.2]} 31. Rbc3 {[%clk 0:01:35.1]} 31... Ra6 {[%clk
0:02:31.8]} 32. Qf4 {[%clk 0:01:31.5]} 32... Re6 {[%clk 0:02:31.4]} 33. Qf5
{[%clk 0:01:19.9]} 33... Qa8 {[%clk 0:02:25.8]} 34. Qd3 {[%clk 0:01:13]} 34...
g6 {[%clk 0:02:22.9]} 35. h4 {[%clk 0:01:12]} 35... h5 {[%clk 0:02:22.3]} 36. g3
{[%clk 0:01:12.6]} 36... Kg7 {[%clk 0:02:22.2]} 37. Kg2 {[%clk 0:01:13]} 37...
Ra4 {[%clk 0:02:18.3]} 38. Qc2 {[%clk 0:00:52.5]} 38... Rc4 {[%clk 0:02:17.8]}
39. Qb3 {[%clk 0:00:45.3]} 39... Rf6 {[%clk 0:02:07.6]} 40. Qb2 {[%clk
0:00:40.9]} 40... Qa4 {[%clk 0:02:00.7]} 41. Qc1 {[%clk 0:00:26.8]} 41... Re6
{[%clk 0:01:55.7]} 42. Qb2 {[%clk 0:00:26.2]} 42... Rf6 {[%clk 0:01:54.1]} 43.
Qc1 {[%clk 0:00:26.2]} 43... Re6 {[%clk 0:01:53.1]} 44. Qb2 {[%clk 0:00:26.3]}
44... Rf6 {[%clk 0:01:51.4]} 1/2-1/2